bitfinex-derivatives/quotes_BTCF0:USTF0_20250830
["timestamp","ask_amount","ask_price","bid_price","bid_amount"]
[1756568649090,1.07458363,108970.0,108960.0,2.59152]
[1756568651689,1.43538363,108970.0,108960.0,2.59152]
[1756568653186,0.76714128,108970.0,108960.0,2.90113276]
[1756568653387,0.79175487,108970.0,108960.0,3.21074552]
[1756568653589,0.07015487,108970.0,108960.0,3.21074552]
[1756568653891,0.04939359,108970.0,108960.0,3.21074552]
[1756568654094,0.07015487,108970.0,108960.0,2.90113276]
[1756568654295,0.04939359,108970.0,108960.0,2.90113276]
[1756568654495,0.07015487,108970.0,108960.0,2.90113276]
[1756568654694,0.48632332,108980.0,108960.0,3.21074552]
[1756568654994,0.50977332,108980.0,108970.0,0.30961276]
[1756568659099,0.47276332,108980.0,108970.0,0.30961276]
[1756568659594,0.11196332,108980.0,108970.0,0.30961276]
[1756568660199,0.14897332,108980.0,108970.0,0.30961276]
[1756568661303,0.11196332,108980.0,108970.0,0.67041276]
[1756568662801,0.06256973,108980.0,108970.0,0.67041276]
[1756568663197,0.09120204,108980.0,108970.0,0.67041276]
[1756568663397,0.11196332,108980.0,108970.0,1.51289276]
[1756568664097,0.14897332,108980.0,108970.0,1.15201276]
[1756568664399,0.50977332,108980.0,108970.0,1.15197276]
[1756568664996,0.50977332,108980.0,108970.0,0.30961276]
[1756568665203,0.50977332,108980.0,108970.0,1.15197276]
[1756568665499,0.50977332,108980.0,108970.0,0.30961276]
[1756568665704,0.50977332,108980.0,108970.0,1.15205276]
[1756568665997,0.81938608,108980.0,108960.0,2.05505276]
[1756568666202,0.03701,108970.0,108960.0,2.05505276]
[1756568666403,0.05777128,108970.0,108960.0,2.89733276]
[1756568667397,0.05777128,108970.0,108960.0,2.89833276]
[1756568667798,0.05777128,108970.0,108960.0,2.89733276]
[1756568668000,0.05777128,108970.0,108960.0,2.89833276]
[1756568668505,0.05777128,108970.0,108960.0,1.15289276]
[1756568669104,0.08640359,108970.0,108960.0,1.15289276]
[1756568669305,0.10716487,108970.0,108960.0,1.15289276]
[1756568670100,0.07015487,108970.0,108960.0,1.46250552]
[1756568670406,0.07015487,108970.0,108960.0,2.07330552]
[1756568670606,0.02076128,108970.0,108960.0,2.07330552]
[1756568673201,0.02076128,108970.0,108960.0,1.23102552]
[1756568673406,0.08087128,108970.0,108960.0,1.40245276]
[1756568673706,0.13026487,108970.0,108960.0,1.15245276]
[1756568673909,0.08087128,108970.0,108960.0,1.15245276]
[1756568674404,0.08087128,108970.0,108960.0,1.51325276]
[1756568674806,0.08087128,108970.0,108960.0,1.51313276]
[1756568676003,0.02076128,108970.0,108960.0,1.51313276]
[1756568676305,0.02076128,108970.0,108960.0,1.82274552]
[1756568676500,0.04939359,108970.0,108960.0,1.82274552]
[1756568676899,0.02076128,108970.0,108960.0,1.82274552]
[1756568677609,0.02076128,108970.0,108960.0,1.20352]
[1756568677810,0.02076128,108970.0,108960.0,1.82274552]
[1756568678310,0.04939359,108970.0,108960.0,1.82274552]
[1756568678810,0.02076128,108970.0,108960.0,1.82274552]
[1756568679005,0.04939359,108970.0,108960.0,1.82274552]
[1756568681004,0.08851332,108980.0,108960.0,1.82274552]
[1756568681205,0.08851332,108980.0,108970.0,0.30961276]
[1756568681405,0.11231332,108980.0,108970.0,0.30961276]
[1756568682314,0.07015487,108980.0,108970.0,0.67041276]
[1756568682915,0.07015487,108980.0,108970.0,0.3608]
[1756568683209,0.02076128,108980.0,108970.0,0.67041276]
[1756568683402,0.02076128,108980.0,108970.0,0.3608]
[1756568683607,0.02076128,108980.0,108970.0,0.67041276]
[1756568684009,0.08087128,108980.0,108970.0,0.30961276]
[1756568684203,0.13026487,108980.0,108970.0,1.15085276]
[1756568684413,0.13026487,108980.0,108970.0,1.51165276]
[1756568684713,0.13026487,108980.0,108970.0,0.67041276]
[1756568685011,0.13026487,108980.0,108970.0,1.51177276]
[1756568685012,0.07015487,108980.0,108970.0,1.51177276]
[1756568686108,0.06984118,108980.0,108970.0,1.51177276]
[1756568688618,0.04939359,108980.0,108970.0,1.51177276]
[1756568689920,0.02044759,108980.0,108970.0,1.51177276]
[1756568693129,0.06984118,108980.0,108970.0,1.51177276]
[1756568693429,0.02044759,108980.0,108970.0,1.51177276]
[1756568694332,0.02044759,108980.0,108970.0,1.76177276]
[1756568696133,0.02044759,108980.0,108970.0,0.92141276]
[1756568696334,0.02044759,108980.0,108970.0,1.76257276]
[1756568698134,0.02044759,108980.0,108970.0,0.92141276]
[1756568698334,0.04424759,108980.0,108970.0,1.76229276]
[1756568699035,0.02044759,108980.0,108970.0,1.76229276]
[1756568699223,0.02044759,108980.0,108970.0,1.51229276]
[1756568699732,0.04424759,108980.0,108970.0,0.67141276]
[1756568699932,0.04424759,108980.0,108970.0,1.51229276]
[1756568700130,0.04424759,108980.0,108970.0,0.67141276]
[1756568700433,0.08055759,108980.0,108970.0,0.3618]
[1756568700730,0.08055759,108980.0,108970.0,1.51201276]
[1756568700935,0.09926254,108980.0,108970.0,1.51201276]
[1756568701130,0.09926254,108980.0,108970.0,1.51209276]
[1756568701334,0.09926254,108980.0,108970.0,1.15129276]
[1756568702339,0.04424759,108980.0,108970.0,1.51209276]
[1756568703137,0.02044759,108980.0,108970.0,1.51209276]
[1756568713237,0.02044511,108980.0,108970.0,1.51209276]
[1756568724752,0.02044511,108980.0,108970.0,1.20248]
[1756568724948,0.02044511,108980.0,108970.0,1.51209276]
[1756568728849,0.02044511,108980.0,108970.0,1.20248]
[1756568729152,0.02044511,108980.0,108970.0,1.51209276]
[1756568729853,0.07808511,108980.0,108970.0,1.51269276]
[1756568730055,0.04380511,108980.0,108970.0,1.51269276]
[1756568730355,0.07808511,108980.0,108970.0,1.51261276]
[1756568730755,0.04380511,108980.0,108970.0,1.51261276]
[1756568731054,0.07808511,108980.0,108970.0,1.51261276]
[1756568731244,0.04380511,108980.0,108970.0,1.51261276]
[1756568732362,0.02044511,108980.0,108970.0,1.51261276]
[1756568735053,0.02044511,108980.0,108970.0,1.203]
[1756568735354,0.02041603,108980.0,108970.0,1.51361276]
[1756568736454,0.02041603,108980.0,108970.0,1.204]
[1756568736955,0.02041603,108980.0,108970.0,1.51361276]
[1756568737656,0.04387603,108980.0,108970.0,0.67141276]
[1756568737852,0.08089603,108980.0,108970.0,1.52653276]
[1756568738157,0.04387603,108980.0,108970.0,1.52653276]
[1756568738952,0.08089603,108980.0,108970.0,1.52661276]
[1756568739854,0.08089603,108980.0,108970.0,1.16689276]
[1756568740657,0.08089603,108980.0,108970.0,1.21808]
[1756568740857,0.08089603,108980.0,108970.0,1.16689276]
[1756568741550,0.08089603,108980.0,108970.0,1.52769276]
[1756568742355,0.08089603,108980.0,108970.0,1.16689276]
[1756568742655,0.04398499,108980.0,108970.0,1.52769276]
[1756568745060,0.04398499,108980.0,108970.0,1.21808]
[1756568745262,0.04398499,108980.0,108970.0,1.52769276]
[1756568749665,0.04398499,108980.0,108970.0,1.21808]
[1756568749972,0.10987359,108980.0,108970.0,1.16689276]
[1756568750162,0.13039858,108980.0,108970.0,1.52769276]
[1756568750363,0.04398499,108980.0,108970.0,1.52769276]
[1756568750666,0.08100499,108980.0,108970.0,1.52769276]
[1756568750862,0.13039858,108980.0,108970.0,1.21808]
[1756568751170,0.13039858,108980.0,108970.0,1.52769276]
[1756568751365,0.08100499,108980.0,108970.0,1.52769276]
[1756568751565,0.13039858,108980.0,108970.0,1.52769276]
[1756568752174,0.08100499,108980.0,108970.0,1.52769276]
[1756568752972,0.08100499,108980.0,108970.0,1.21808]
[1756568753175,0.14911356,108980.0,108970.0,1.2176]
[1756568753369,0.14911356,108980.0,108970.0,1.52721276]
[1756568753570,1.02013273,108980.0,108970.0,0.001]
[1756568753764,0.77656259,108980.0,108970.0,0.001]
[1756568753970,1.08617535,108980.0,108970.0,0.85688]
[1756568754465,1.02013273,108980.0,108970.0,0.85688]
[1756568755070,1.08617535,108980.0,108970.0,0.85688]
[1756568755265,1.02013273,108980.0,108970.0,0.85688]
[1756568755671,1.08617535,108980.0,108970.0,0.85704]
[1756568756077,0.77656259,108980.0,108970.0,0.85704]
[1756568756263,1.08617535,108980.0,108970.0,0.85704]
[1756568756864,0.77656259,108980.0,108970.0,1.16565276]
[1756568757065,0.71051997,108980.0,108970.0,1.16565276]
[1756568757270,0.71051997,108980.0,108970.0,0.85604]
[1756568757482,0.71051997,108980.0,108970.0,1.16565276]
[1756568758182,0.71051997,108980.0,108970.0,0.856]
[1756568758383,0.71051997,108980.0,108970.0,1.16561276]
[1756568758686,0.71051997,108980.0,108970.0,1.16577276]
[1756568759184,0.46051997,108980.0,108970.0,1.16577276]
[1756568759678,0.46051997,108980.0,108970.0,0.85616]
[1756568759878,0.46051997,108980.0,108970.0,1.16577276]
[1756568760678,0.46051997,108980.0,108970.0,0.85616]
[1756568760877,0.71051997,108980.0,108970.0,1.16577276]
[1756568761078,0.03498,108970.0,108960.0,1.74504]
[1756568761274,0.44525578,108970.0,108960.0,2.91045276]
[1756568761480,0.46578077,108970.0,108960.0,2.91045276]
[1756568762076,0.46578077,108970.0,108960.0,2.60542]
[1756568762273,0.46578077,108970.0,108960.0,2.91503276]
[1756568762478,0.46578077,108970.0,108960.0,2.91491276]
[1756568762683,0.46578077,108970.0,108960.0,2.6053]
[1756568762984,0.46578077,108970.0,108960.0,2.91591276]
[1756568763678,0.46578077,108970.0,108960.0,2.91691276]
[1756568765990,0.46578077,108970.0,108960.0,2.06123276]
[1756568766191,0.46578077,108970.0,108960.0,2.91647276]
[1756568766788,0.46578077,108970.0,108960.0,2.60686]
[1756568766993,0.46578077,108970.0,108960.0,2.91647276]
[1756568767189,0.4657501,108970.0,108960.0,2.91647276]
[1756568767694,0.7157501,108970.0,108960.0,2.60686]
[1756568767992,0.7157501,108970.0,108960.0,2.91647276]
[1756568768386,0.7157501,108970.0,108960.0,2.06123276]
[1756568768788,0.7157501,108970.0,108960.0,2.91707276]
[1756568769194,0.69522511,108970.0,108960.0,2.91707276]
[1756568769395,0.7158802,108970.0,108960.0,2.91707276]
[1756568771596,0.7158802,108970.0,108960.0,1.75162]
[1756568771904,0.78950041,108970.0,108960.0,2.91659276]
[1756568774100,0.78950041,108970.0,108960.0,1.17155276]
[1756568776498,0.76884532,108970.0,108960.0,1.17155276]
[1756568776798,0.78959053,108970.0,108960.0,1.17155276]
[1756568778503,0.74014542,108970.0,108960.0,1.17155276]
[1756568779400,0.37934542,108970.0,108960.0,1.17155276]
[1756568779600,0.74014542,108970.0,108960.0,1.17155276]
[1756568780806,0.76459542,108970.0,108960.0,1.17155276]
[1756568781309,1.14026874,108970.0,108960.0,0.86194]
[1756568781506,1.14026874,108970.0,108960.0,0.00658]
[1756568782010,0.05943,108950.0,108940.0,0.3837631]
[1756568782195,0.1089235,108950.0,108940.0,1.3421414]
[1756568782395,0.12966871,108950.0,108940.0,1.3421414]
[1756568783108,0.12966871,108950.0,108940.0,0.6192614]
[1756568783302,0.49046871,108950.0,108940.0,1.1646192]
[1756568783606,0.49046871,108950.0,108940.0,0.85888]
[1756568783807,0.49046871,108950.0,108940.0,1.1686192]
[1756568784008,0.4905016,108950.0,108940.0,1.1686192]
[1756568784207,0.4905016,108950.0,108940.0,1.1706192]
[1756568784806,0.4905016,108950.0,108940.0,1.1705392]
[1756568786504,0.4905016,108950.0,108940.0,1.1702192]
[1756568787110,0.4905016,108950.0,108940.0,0.3157392]
[1756568787305,0.4905016,108950.0,108940.0,1.1698192]
[1756568787909,0.4905016,108950.0,108940.0,0.86008]
[1756568788210,0.4905016,108950.0,108940.0,1.1698192]
[1756568788707,0.4905016,108950.0,108940.0,1.1696992]
[1756568789202,0.4905016,108950.0,108940.0,0.85996]
[1756568789407,0.4905016,108950.0,108940.0,1.1696992]
[1756568789610,0.4905016,108950.0,108940.0,0.006]
[1756568789912,0.4905016,108950.0,108940.0,1.1694992]
[1756568792812,0.4905016,108950.0,108940.0,0.85976]
[1756568793010,0.4555216,108950.0,108940.0,1.1694992]
[1756568793312,0.0947216,108950.0,108940.0,1.1694992]
[1756568793814,0.1308416,108950.0,108940.0,1.1694992]
[1756568795010,0.0947216,108950.0,108940.0,1.1694992]
[1756568795210,0.1308416,108950.0,108940.0,1.1694992]
[1756568795816,0.1308416,108950.0,108940.0,0.3157392]
[1756568796117,0.1308416,108950.0,108940.0,1.1700992]
[1756568796415,0.1308416,108950.0,108940.0,1.1707792]
[1756568798017,0.1308416,108950.0,108940.0,0.3157392]
[1756568798315,0.1308416,108950.0,108940.0,1.1708192]
[1756568799315,0.1308416,108950.0,108940.0,0.3157392]
[1756568799613,0.1308416,108950.0,108940.0,1.1705392]
[1756568800720,0.1308416,108950.0,108940.0,0.3157392]
[1756568800919,0.1308416,108950.0,108940.0,1.1702592]
[1756568802722,0.1308416,108950.0,108940.0,0.86052]
[1756568802909,0.1308416,108950.0,108940.0,1.1702592]
[1756568805322,0.1308416,108950.0,108940.0,1.47994902]
[1756568807522,0.0947216,108950.0,108940.0,1.47994902]
[1756568809021,0.0947216,108950.0,108940.0,0.86052]
[1756568809227,0.0947216,108950.0,108940.0,1.47994902]
[1756568809526,0.1308416,108950.0,108940.0,1.47994902]
[1756568809926,0.0947216,108950.0,108940.0,1.47994902]
[1756568811328,0.04519521,108950.0,108940.0,1.47994902]
[1756568812026,0.08131521,108950.0,108940.0,1.47994902]
[1756568813430,0.04519521,108950.0,108940.0,1.47994902]
[1756568814329,0.08131521,108950.0,108940.0,1.47994902]
[1756568815723,0.44211521,108950.0,108940.0,0.62542902]
[1756568815933,0.44211521,108950.0,108940.0,1.47670902]
[1756568820332,0.44211521,108950.0,108940.0,0.006]
[1756568820530,0.75182972,108950.0,108940.0,0.31571451]
[1756568820732,0.81787234,108950.0,108940.0,1.16611451]
[1756568825132,0.81787234,108950.0,108940.0,0.8564]
[1756568825333,0.81787234,108950.0,108940.0,1.16611451]
[1756568826437,0.81787234,108950.0,108940.0,0.31571451]
[1756568826636,0.81787234,108950.0,108940.0,1.16519451]
[1756568827232,0.81787234,108950.0,108940.0,0.006]
[1756568827432,0.75182972,108950.0,108940.0,0.8554]
[1756568827633,0.81787234,108950.0,108940.0,0.8554]
[1756568827835,0.81787234,108950.0,108940.0,0.006]
[1756568828035,0.81787234,108950.0,108940.0,0.85516]
[1756568828337,1.06787234,108950.0,108940.0,0.006]
[1756568828537,1.37758685,108950.0,108940.0,0.006]
[1756568828737,1.06787234,108950.0,108940.0,0.006]
[1756568829134,1.06787756,108950.0,108940.0,0.006]
[1756568829736,1.00182972,108950.0,108940.0,0.006]
[1756568830831,0.69211521,108950.0,108940.0,0.006]
[1756568831033,1.06786216,108950.0,108940.0,0.31571451]
[1756568834140,1.06786216,108950.0,108940.0,0.004]
[1756568834342,1.06786216,108950.0,108940.0,0.002]
[1756568834543,1.06786216,108950.0,108940.0,0.31271451]
[1756568834849,1.00282972,108950.0,108940.0,0.31071451]
[1756568835448,1.00282972,108950.0,108940.0,0.001]
[1756568835650,1.03370593,108950.0,108940.0,0.30971451]
[1756568835850,1.03370593,108950.0,108930.0,0.50371]
[1756568836044,0.69357451,108940.0,108930.0,0.50371]
[1756568836243,0.83545755,108940.0,108930.0,0.81342451]
[1756568836547,0.76946134,108940.0,108930.0,1.16026451]
[1756568836950,0.83545755,108940.0,108930.0,1.16026451]
[1756568837148,0.76946134,108940.0,108930.0,1.16026451]
[1756568837651,0.45974683,108940.0,108930.0,1.16026451]
[1756568837850,0.76946134,108940.0,108930.0,1.16026451]
[1756568838051,0.45974683,108940.0,108930.0,1.16026451]
[1756568838350,0.76946134,108940.0,108930.0,1.16026451]
[1756568838547,0.45974683,108940.0,108930.0,1.16026451]
[1756568838748,0.0887985,108940.0,108930.0,1.71997902]
[1756568839046,0.03930683,108940.0,108930.0,1.71997902]
[1756568839748,0.03930683,108940.0,108930.0,2.08077902]
[1756568840940,0.03930683,108940.0,108930.0,1.71997902]
[1756568841646,0.03930683,108940.0,108930.0,2.07898902]
[1756568842952,0.03930683,108940.0,108930.0,2.08077902]
[1756568843756,0.03930683,108940.0,108930.0,0.61259]
[1756568843954,0.0887985,108940.0,108930.0,1.23201902]
[1756568844154,0.03930683,108940.0,108930.0,2.08013902]
[1756568844356,0.06805329,108940.0,108930.0,2.08013902]
[1756568844654,0.0887985,108940.0,108930.0,2.08013902]
[1756568848258,0.03930683,108940.0,108930.0,2.08013902]
[1756568854261,0.03930683,108940.0,108930.0,1.23201902]
[1756568854463,0.03930683,108940.0,108930.0,2.07881902]
[1756568855360,0.03930683,108940.0,108930.0,1.45939]
[1756568855561,0.03930683,108940.0,108930.0,2.07881902]
[1756568860167,0.06805329,108940.0,108930.0,2.07881902]
[1756568860569,0.0887985,108940.0,108930.0,2.07881902]
[1756568861270,0.0887985,108940.0,108930.0,1.23201902]
[1756568861467,0.0887985,108940.0,108930.0,2.07837902]
[1756568863071,0.0887985,108940.0,108930.0,1.23201902]
[1756568863272,0.0887985,108940.0,108930.0,2.07809902]
[1756568864873,0.0887985,108940.0,108930.0,1.23201902]
[1756568865072,0.0887985,108940.0,108930.0,2.07773902]
[1756568866574,0.0887985,108940.0,108930.0,1.23201902]
[1756568866873,0.0887985,108940.0,108930.0,2.07745902]
[1756568867571,0.1251085,108940.0,108930.0,2.07753902]
[1756568867764,0.1251085,108940.0,108930.0,0.61259]
[1756568867765,0.1497585,108940.0,108930.0,0.61259]
[1756568867970,1.02078134,108940.0,108930.0,0.31150451]
[1756568868170,1.07027301,108940.0,108930.0,1.15714451]
[1756568868675,1.07227301,108940.0,108930.0,1.15714451]
[1756568869072,1.07227301,108940.0,108930.0,1.15706451]
[1756568869876,1.07227301,108940.0,108930.0,0.31150451]
[1756568870174,1.02278134,108940.0,108930.0,0.84743]
[1756568870378,1.02278134,108940.0,108930.0,1.15714451]
[1756568870576,1.33249585,108940.0,108930.0,0.00179]
[1756568870776,1.08877755,108940.0,108930.0,1.15714451]
[1756568870978,1.08877755,108940.0,108930.0,0.84743]
[1756568871177,1.08877755,108940.0,108930.0,1.15714451]
[1756568872879,1.39849206,108940.0,108930.0,0.84731]
[1756568873081,1.39849206,108940.0,108930.0,0.00179]
[1756568873781,1.33249585,108940.0,108930.0,0.00179]
[1756568873982,1.36222615,108940.0,108920.0,1.15559451]
[1756568874279,0.77286481,108930.0,108920.0,1.15559451]
[1756568874479,0.81826002,108930.0,108920.0,0.84588]
[1756568874780,0.81826002,108930.0,108920.0,1.15559451]
[1756568875277,0.81826002,108930.0,108920.0,0.31151451]
[1756568875478,0.8276216,108930.0,108920.0,1.15735451]
[1756568876082,0.8276216,108930.0,108920.0,0.31151451]
[1756568876381,0.7615813,108930.0,108920.0,0.84748]
[1756568876578,0.8276216,108930.0,108920.0,0.8474]
[1756568876780,0.8276216,108930.0,108920.0,0.0018]
[1756568876977,0.8276216,108930.0,108920.0,0.84744]
[1756568877279,0.7615813,108930.0,108920.0,0.0018]
[1756568877580,0.7615813,108930.0,108920.0,0.84744]
[1756568877882,0.8286216,108930.0,108920.0,0.84744]
[1756568878070,0.8306216,108930.0,108920.0,0.84744]
[1756568878275,0.7645813,108930.0,108920.0,0.84744]
[1756568879170,0.7645813,108930.0,108920.0,0.0018]
[1756568879377,0.7645813,108930.0,108920.0,0.84708]
[1756568880276,0.7645813,108930.0,108920.0,1.15679451]
[1756568880577,0.45486679,108930.0,108920.0,0.84708]
[1756568880769,0.45486679,108930.0,108920.0,1.46650902]
[1756568881388,0.46800104,108930.0,108920.0,1.46650902]
[1756568881975,0.50407104,108930.0,108920.0,0.84708]
[1756568882282,0.50407104,108930.0,108920.0,1.46650902]
[1756568883282,0.50407104,108930.0,108920.0,1.15690782]
[1756568883679,0.50407104,108930.0,108920.0,0.84708]
[1756568883879,0.50407104,108930.0,108920.0,1.15690782]
[1756568884280,0.45462679,108930.0,108920.0,1.15690782]
[1756568884481,0.5040643,108930.0,108920.0,0.31162782]
[1756568884680,0.5040643,108930.0,108920.0,1.15738782]
[1756568886592,0.0825443,108930.0,108920.0,1.76818782]
[1756568886789,0.03310679,108930.0,108920.0,2.07801564]
[1756568887092,0.02374521,108930.0,108920.0,2.07801564]
[1756568887278,0.02374521,108930.0,108920.0,1.76818782]
[1756568887994,0.02374521,108930.0,108920.0,2.07801564]
[1756568889095,0.02374521,108930.0,108920.0,1.76818782]
[1756568889986,0.02374521,108930.0,108920.0,2.07801564]
[1756568890595,0.02374521,108930.0,108920.0,1.76818782]
[1756568891298,0.02374521,108930.0,108920.0,0.92242782]
[1756568891498,0.02374521,108930.0,108920.0,1.76794782]
[1756568900109,0.02374521,108930.0,108920.0,2.07777564]
[1756568901110,0.02274521,108930.0,108920.0,2.07777564]
[1756568901598,0.02174521,108930.0,108920.0,2.07777564]
[1756568901797,0.02074521,108930.0,108920.0,2.07777564]
[1756568901999,0.001,108930.0,108920.0,2.07777564]
[1756568902298,0.02174521,108930.0,108920.0,2.07777564]
[1756568902708,0.02074521,108930.0,108920.0,2.07777564]
[1756568903107,0.13400705,108940.0,108920.0,2.07777564]
[1756568903310,0.15651705,108940.0,108930.0,0.98045564]
[1756568904811,0.12144705,108940.0,108930.0,0.98045564]
[1756568905009,0.12144705,108940.0,108930.0,0.98224564]
[1756568905408,0.12144705,108940.0,108930.0,0.98205804]
[1756568906213,0.12244705,108940.0,108930.0,0.98205804]
[1756568908420,0.09993705,108940.0,108930.0,0.98205804]
[1756568909211,0.09993705,108940.0,108930.0,1.82769804]
[1756568909410,0.04130683,108940.0,108930.0,2.07769804]
[1756568910617,0.04030683,108940.0,108930.0,2.07769804]
[1756568911518,0.03930683,108940.0,108930.0,2.07769804]
[1756568911716,0.03930683,108940.0,108930.0,1.45823]
[1756568911914,0.03930683,108940.0,108930.0,2.07769804]
[1756568912619,0.03930683,108940.0,108930.0,1.23205804]
[1756568912818,0.03930683,108940.0,108930.0,2.07877804]
[1756568913523,0.03930683,108940.0,108930.0,1.23192294]
[1756568913718,0.03930683,108940.0,108930.0,2.07884294]
[1756568914118,0.03930683,108940.0,108930.0,1.23192294]
[1756568914424,0.03930683,108940.0,108930.0,2.07920294]
[1756568915615,0.03930683,108940.0,108930.0,1.23192294]
[1756568915821,0.03930683,108940.0,108930.0,2.07920294]
[1756568916223,0.06799913,108940.0,108930.0,2.07920294]
[1756568916923,0.08874434,108940.0,108930.0,2.07920294]
[1756568917123,0.08874434,108940.0,108930.0,2.07892294]
[1756568917424,0.03930683,108940.0,108930.0,2.07892294]
[1756568917626,0.03930683,108940.0,108930.0,1.23192294]
[1756568917825,0.03930683,108940.0,108930.0,2.07880294]
[1756568918721,0.06799913,108940.0,108930.0,2.07880294]
[1756568919123,0.08874434,108940.0,108930.0,2.07880294]
[1756568919426,0.08874434,108940.0,108930.0,2.07868294]
[1756568922429,0.08874434,108940.0,108930.0,2.07812294]
[1756568923527,0.03930683,108940.0,108930.0,2.07812294]
[1756568926030,0.03930683,108940.0,108930.0,1.23192294]
[1756568926328,0.03930683,108940.0,108930.0,2.07856294]
[1756568926721,0.06799913,108940.0,108930.0,2.07856294]
[1756568926922,0.08874434,108940.0,108930.0,2.07856294]
[1756568929733,0.03930683,108940.0,108930.0,2.07856294]
[1756568931136,0.06799913,108940.0,108930.0,2.07856294]
[1756568931534,0.08874434,108940.0,108930.0,2.07856294]
[1756568931933,0.03930683,108940.0,108930.0,2.07856294]
[1756568933342,0.03930683,108940.0,108930.0,2.07856798]
[1756568934235,0.1030303,108970.0,108930.0,2.48002917]
[1756568934444,0.06074,108970.0,108960.0,0.61933798]
[1756568934635,0.06074,108970.0,108960.0,1.46493798]
[1756568934945,0.06074,108960.0,108950.0,0.37909496]
[1756568935140,0.06074,108960.0,108950.0,0.99843294]
[1756568935335,0.06074,108960.0,108950.0,1.84399294]
[1756568935844,0.06074,108960.0,108950.0,1.84578294]
[1756568936543,0.06074,108960.0,108950.0,1.84630294]
[1756568937245,0.06174,108960.0,108950.0,1.84630294]
[1756568937745,0.06274,108960.0,108950.0,1.84630294]
[1756568942657,0.06274,108960.0,108950.0,1.00022294]
[1756568942858,0.06174,108960.0,108950.0,1.84530294]
[1756568943259,0.62140899,108960.0,108950.0,1.22604496]
[1756568943445,0.31174,108960.0,108950.0,1.53571395]
[1756568943652,0.62140899,108960.0,108950.0,1.53571395]
[1756568943854,0.62140899,108960.0,108950.0,1.17491395]
[1756568944056,0.31174,108960.0,108950.0,1.17491395]
[1756568944365,0.31274,108960.0,108950.0,1.17491395]
[1756568944858,0.31274,108960.0,108950.0,0.32975395]
[1756568945260,0.31274,108960.0,108950.0,1.17535395]
[1756568946253,0.33325692,108960.0,108950.0,1.17535395]
[1756568946948,0.02251692,108960.0,108950.0,1.84582294]
[1756568949356,0.02251692,108960.0,108950.0,1.22648496]
[1756568949557,0.02251692,108960.0,108950.0,1.84582294]
[1756568950065,0.05866692,108960.0,108950.0,1.84582294]
[1756568950454,0.02251692,108960.0,108950.0,1.84582294]
[1756568956464,0.02151692,108960.0,108950.0,1.84582294]
[1756568956869,0.02051692,108960.0,108950.0,1.84582294]
[1756568957768,0.02051692,108960.0,108950.0,2.40549193]
[1756568958272,0.02051692,108960.0,108950.0,2.09582294]
[1756568958667,0.02051692,108960.0,108950.0,2.40549193]
[1756568958971,0.02051692,108960.0,108950.0,2.49726723]
[1756568959164,0.01393692,108960.0,108950.0,2.49726723]
[1756568959473,0.01393692,108960.0,108950.0,2.18727128]
[1756568960069,0.01393692,108960.0,108950.0,2.19661645]
[1756568961167,0.01393692,108960.0,108950.0,1.57760543]
[1756568961367,0.01393692,108960.0,108950.0,2.19661645]
[1756568962177,0.01393692,108960.0,108950.0,2.10484115]
[1756568962364,0.01393692,108960.0,108950.0,2.19661645]
[1756568962664,0.01393692,108960.0,108950.0,0.64023013]
[1756568962970,0.01393692,108960.0,108950.0,2.10604115]
[1756568963373,0.01393692,108960.0,108950.0,1.24989598]
[1756568963570,0.01393692,108960.0,108950.0,2.09869598]
[1756568964168,0.01393692,108960.0,108950.0,2.09861598]
[1756568964569,0.01393692,108960.0,108950.0,1.24989598]
[1756568964772,0.01393692,108960.0,108950.0,2.09845598]
[1756568967379,0.01393692,108960.0,108950.0,2.09813598]
[1756568968177,0.01393692,108960.0,108950.0,1.24989598]
[1756568968779,0.05008692,108960.0,108950.0,1.78863047]
[1756568969770,0.01393692,108960.0,108950.0,1.78863047]
[1756568969977,0.01393692,108960.0,108950.0,2.09813598]
[1756568976481,0.01393692,108960.0,108950.0,1.24989598]
[1756568976681,0.01393692,108960.0,108950.0,2.09901598]
[1756568978181,0.01393692,108960.0,108950.0,1.94079128]
[1756568978678,0.01393692,108960.0,108950.0,1.84901598]
[1756568979280,0.01393692,108960.0,108950.0,2.15854375]
[1756568981979,0.01393692,108960.0,108950.0,3.90374375]
[1756568983583,0.01393692,108960.0,108950.0,3.90574375]
[1756568984483,0.01393692,108960.0,108950.0,2.97720496]
[1756568984682,0.01393692,108960.0,108950.0,3.90574375]
[1756568985085,0.01393692,108960.0,108950.0,3.90674375]
[1756568987386,0.01393692,108960.0,108950.0,3.05762375]
[1756568987684,0.01393692,108960.0,108950.0,3.90562375]
[1756568998693,0.01393692,108960.0,108950.0,3.05762375]
[1756568998882,0.01393692,108960.0,108950.0,2.12908496]
[1756568998883,0.05024692,108960.0,108950.0,2.12908496]
[1756568999090,0.05024692,108960.0,108950.0,3.59451082]
[1756569000296,0.05024692,108960.0,108950.0,2.74811082]
[1756569000497,0.05024692,108960.0,108950.0,3.59495082]
[1756569002796,0.05024692,108960.0,108950.0,2.74811082]
[1756569002993,0.05024692,108960.0,108950.0,3.59459082]
[1756569010208,0.05024692,108960.0,108950.0,2.74811082]
[1756569010410,0.05024692,108960.0,108950.0,3.59391082]
[1756569011804,0.05024692,108960.0,108950.0,2.74811082]
[1756569012107,0.05024692,108960.0,108950.0,3.59359082]
[1756569015511,0.05024692,108960.0,108950.0,1.84839082]
[1756569017214,0.05024692,108960.0,108950.0,1.22936496]
[1756569017415,0.05024692,108960.0,108950.0,1.84839082]
[1756569023031,0.05024692,108960.0,108950.0,1.00291082]
[1756569023320,0.05024692,108960.0,108950.0,0.38388496]
[1756569023520,0.07436692,108960.0,108950.0,1.53807789]
[1756569023821,0.12385929,108960.0,108950.0,1.00291082]
[1756569024022,0.12385929,108960.0,108950.0,1.84759082]
[1756569026121,0.07436692,108960.0,108950.0,1.84759082]
[1756569026416,0.07436692,108960.0,108950.0,1.22856496]
[1756569026621,0.07436692,108960.0,108950.0,1.84759082]
[1756569026921,0.12385929,108960.0,108950.0,1.84759082]
[1756569028423,0.12385929,108960.0,108950.0,1.00291082]
[1756569028924,0.14443392,108960.0,108950.0,1.15898293]
[1756569029320,0.45394685,108960.0,108950.0,1.15898293]
[1756569029720,0.45394685,108960.0,108950.0,0.84947]
[1756569029916,0.14443392,108960.0,108950.0,1.15898293]
[1756569032422,0.45394685,108960.0,108950.0,1.15898293]
[1756569032920,0.45394685,108960.0,108950.0,0.84947]
[1756569032921,0.45574155,108960.0,108950.0,0.84947]
[1756569033116,0.45574155,108960.0,108950.0,1.15898293]
[1756569034120,0.09494155,108960.0,108950.0,1.15898293]
[1756569036729,0.05863155,108960.0,108950.0,1.82929586]
[1756569036926,0.09341155,108960.0,108950.0,1.51978293]
[1756569037325,0.05863155,108960.0,108950.0,1.51978293]
[1756569037827,0.09341155,108960.0,108950.0,1.51978293]
[1756569038029,0.05863155,108960.0,108950.0,1.51978293]
[1756569039433,0.10812392,108960.0,108950.0,1.51978293]
[1756569041133,0.10812392,108960.0,108950.0,0.67510293]